fUST/lending_fUST_20250613
["ID","MTS","AMOUNT","RATE_DAILY","PERIOD"]
[365599727,1749799841254,-152.597692,0.00021369,2]
[365599729,1749799841263,-460.0,0.00021369,4]
[365599731,1749799841272,-460.0,0.00021369,4]
[365599733,1749799841281,-460.0,0.00021369,4]
[365599734,1749799841291,-732.5,0.00021369,2]
[365599736,1749799841300,-460.0,0.00021369,4]
[365599738,1749799841309,-151.0,0.00021369,2]
[365599740,1749799841318,-1173.81,0.00021369,4]
[365599742,1749799841327,-571.07,0.00021369,4]
[365599752,1749799841434,-460.0,0.00021369,4]
[365599754,1749799841444,-460.0,0.00021369,4]
[365599756,1749799841455,-613.79,0.00021369,4]
[365599757,1749799841466,-460.0,0.00021369,4]
[365599759,1749799841476,-194.941344,0.00021369,2]
[365599761,1749799841486,-194.941344,0.00021369,2]
[365599763,1749799841496,-1089.66,0.00021369,4]
[365599765,1749799841506,-674.41,0.00021369,4]
[365599767,1749799841516,-460.0,0.00021369,4]
[365599769,1749799841526,-460.0,0.00021369,4]
[365599771,1749799841536,-460.0,0.00021369,4]
[365599773,1749799841545,-176.7770998,0.00021369,4]
[365599775,1749799841555,-460.0,0.00021369,4]
[365599777,1749799841564,-460.0,0.00021369,4]
[365599778,1749799841574,-480.27,0.00021369,4]
[365599780,1749799841583,-389.63537497,0.00021369,4]
[365599782,1749799841593,-460.0,0.00021369,4]
[365599784,1749799841602,-1146.46,0.00021369,4]
[365599786,1749799841612,-460.0,0.00021369,4]
[365599788,1749799841621,-460.0,0.00021369,4]
[365599790,1749799841630,-460.0,0.00021369,4]
[365599792,1749799841641,-460.0,0.00021369,4]
[365599794,1749799841651,-684.08,0.00021369,4]
[365599795,1749799841660,-620.25,0.00021369,4]
[365599797,1749799841669,-460.0,0.00021369,4]
[365599799,1749799841679,-1198.41,0.00021369,4]
[365599801,1749799841688,-170.69303325,0.00021369,4]
[365599803,1749799841698,-486.63043916,0.00021369,4]
[365599805,1749799841707,-460.0,0.00021369,4]
[365599807,1749799841716,-460.0,0.00021369,4]
[365599809,1749799841726,-1287.57,0.000214,4]
[365599810,1749799841735,-151.0,0.00021401,2]
[365599812,1749799841745,-151.35033182,0.00021401,2]
[365599814,1749799841755,-5000.0,0.00021401,2]
[365599816,1749799841764,-3455.35601743,0.00021401,2]
[365599818,1749799841773,-500.0,0.00021401,2]
[365599820,1749799841782,-500.0,0.00021401,2]
[365599822,1749799841793,-500.0,0.00021401,2]
[365599824,1749799841803,-500.0,0.00021401,2]
[365599825,1749799841813,-500.0,0.00021401,2]
[365599827,1749799841823,-500.0,0.00021401,2]
[365599829,1749799841832,-500.0,0.00021401,2]
[365599831,1749799841842,-500.0,0.00021401,2]
[365599833,1749799841851,-500.0,0.00021401,2]
[365599835,1749799841861,-500.0,0.00021401,2]
[365599837,1749799841869,-500.0,0.00021401,2]
[365599838,1749799841879,-500.0,0.00021401,2]
[365599840,1749799841889,-207.4,0.00021401,2]
[365599842,1749799841899,-500.0,0.00021401,2]
[365599844,1749799841909,-500.0,0.00021401,2]
[365599846,1749799841919,-500.0,0.00021401,2]
[365599848,1749799841930,-500.0,0.00021401,2]
[365599850,1749799841940,-500.0,0.00021401,2]
[365599852,1749799841950,-500.0,0.00021401,2]
[365599854,1749799841959,-500.0,0.00021401,2]
[365599855,1749799841968,-500.0,0.00021401,2]
[365599857,1749799841977,-500.0,0.00021401,2]
[365599859,1749799841987,-500.0,0.00021401,2]
[365599861,1749799841996,-500.0,0.00021401,2]
[365599863,1749799842005,-500.0,0.00021401,2]
[365599865,1749799842015,-500.0,0.00021401,2]
[365599867,1749799842023,-500.0,0.00021401,2]
[365599868,1749799842033,-500.0,0.00021401,2]
[365599870,1749799842042,-500.0,0.00021401,2]
[365599872,1749799842052,-500.0,0.00021401,2]
[365599874,1749799842061,-500.0,0.00021401,2]
[365599876,1749799842070,-151.0,0.00021401,2]
[365599878,1749799842081,-151.0,0.00021401,2]
[365599879,1749799842090,-151.0,0.00021401,2]
[365599881,1749799842100,-151.0,0.00021401,2]
[365599883,1749799842109,-151.0,0.00021401,2]
[365599885,1749799842119,-602.544467,0.00021401,2]
[365599887,1749799842128,-602.544467,0.00021401,2]
[365599889,1749799842139,-152.375438,0.00021401,2]
[365599891,1749799842149,-151.0,0.00021401,2]
[365599893,1749799842158,-151.0,0.00021401,2]
[365599894,1749799842167,-151.0,0.00021401,2]
[365599896,1749799842177,-1763.300814,0.00021401,2]
[365599898,1749799842187,-1763.300814,0.00021401,2]
[365599900,1749799842196,-151.0,0.00021401,2]
[365599902,1749799842206,-1215.672366,0.00021401,2]
[365599904,1749799842215,-1215.672366,0.00021401,2]
[365599906,1749799842226,-1287.57,0.0002142,4]
[365599908,1749799842236,-502.7857742,0.00021421,2]
[365599909,1749799842246,-1000.0,0.00021421,2]
[365599911,1749799842256,-1005.47568824,0.00021421,2]
[365599913,1749799842265,-1019.2447875,0.00021421,2]
[365599915,1749799842275,-1000.0,0.00021421,2]
[365599917,1749799842284,-508.9242103,0.00021421,2]
[365599919,1749799842294,-418.28863315,0.00021421,2]
[365599921,1749799842303,-426.13700391,0.00021421,2]
[365599922,1749799842313,-1000.0,0.00021421,2]
[365599924,1749799842322,-509.04374065,0.00021421,2]
[365599926,1749799842332,-1000.0,0.00021421,2]
[365599928,1749799842341,-507.6131257,0.00021421,2]
[365599930,1749799842351,-508.50880777,0.00021421,2]
[365599932,1749799842360,-534.13547628,0.00021421,2]
[365599934,1749799842370,-769.42541527,0.00021421,2]
[365599936,1749799842379,-1000.0,0.00021421,2]
[365599937,1749799842400,-505.4837933,0.00021421,2]
[365599939,1749799842412,-542.870431,0.00021422,2]
[365599941,1749799842421,-542.870431,0.00021422,2]
[365599943,1749799842431,-500.0,0.00021442,3]
[365599945,1749799842443,-2947.09752673,0.00021452,5]
[365599947,1749799842453,-151.0,0.00021452,2]
[365599949,1749799842464,-2497.937806,0.00021452,2]
[365599950,1749799842475,-2497.937806,0.00021452,2]
[365599952,1749799842486,-151.0,0.00021452,2]
[365599954,1749799842496,-214.768915,0.00021452,2]
[365599956,1749799842506,-214.768915,0.00021452,2]
[365599958,1749799842516,-1287.57,0.00021491,4]
[365599960,1749799842526,-151.0,0.00021492,2]
[365599962,1749799842536,-151.0,0.00021492,2]
[365599964,1749799842546,-151.0,0.00021492,2]
[365599965,1749799842557,-1763.300814,0.00021492,2]
[365599967,1749799842566,-1763.300814,0.00021492,2]
[365599969,1749799842576,-151.0,0.00021492,2]
[365599973,1749799842586,-194.941344,0.00021492,2]
[365599976,1749799842595,-194.941344,0.00021492,2]
[365599980,1749799842605,-244.85326777,0.00021542,2]
[365599981,1749799842615,-2223.04495039,0.00021543,2]
[365599983,1749799842624,-1287.57,0.00021589,4]
[365599985,1749799842637,-2947.09752673,0.0002159,5]
[365599987,1749799842647,-151.0,0.0002159,2]
[365599989,1749799842656,-151.0,0.0002159,2]
[365599990,1749799842666,-1027.08972545,0.00021617,2]
[365599992,1749799842677,-151.0,0.00021625,2]
[365599994,1749799842687,-175.021273,0.00021625,2]
[365599996,1749799842698,-151.0,0.00021625,2]
[365599998,1749799842709,-175.021273,0.00021625,2]
[365600000,1749799842719,-151.376073,0.00021641,2]
[365600002,1749799842729,-1287.57,0.00021642,4]
[365600003,1749799842752,-151.0,0.00021643,2]
[365600006,1749799842763,-201.092802,0.00021643,2]
[365600009,1749799842773,-151.0,0.00021643,2]
[365600011,1749799842783,-201.092802,0.00021643,2]
[365600013,1749799842794,-153.183717,0.00021643,2]
[365600015,1749799842804,-151.0,0.00021643,2]
[365600017,1749799842814,-151.0,0.00021643,2]
[365600018,1749799842825,-175.021273,0.00021643,2]
[365600020,1749799842835,-151.0,0.00021643,2]
[365600022,1749799842845,-175.021273,0.00021643,2]
[365600024,1749799842856,-151.0,0.00021643,2]
[365600026,1749799842866,-162.134399,0.00021643,2]
[365600028,1749799842876,-460.0,0.00021643,4]
[365600030,1749799842888,-391.02805571,0.00021643,4]
[365600032,1749799842897,-460.0,0.00021643,4]
[365600033,1749799842907,-460.0,0.00021643,4]
[365600035,1749799842917,-732.5,0.00021643,2]
[365600037,1749799842927,-460.0,0.00021643,4]
[365600039,1749799842937,-1173.81,0.00021643,4]
[365600041,1749799842947,-571.07,0.00021643,4]
[365600043,1749799842956,-460.0,0.00021643,4]
[365600045,1749799842966,-460.0,0.00021643,4]
[365600047,1749799842976,-613.79,0.00021643,4]
[365600049,1749799842986,-460.0,0.00021643,4]
[365600050,1749799842997,-1089.66,0.00021643,4]
[365600052,1749799843006,-674.41,0.00021643,4]
[365600054,1749799843016,-460.0,0.00021643,4]
[365600056,1749799843026,-1215.672366,0.00021643,2]
[365600058,1749799843036,-1215.672366,0.00021643,2]
[365600060,1749799843045,-386.78785527,0.00021643,4]
[365600062,1749799843055,-460.0,0.00021643,4]
[365600064,1749799843064,-460.0,0.00021643,4]
[365600065,1749799843074,-460.0,0.00021643,4]
[365600067,1749799843084,-480.27,0.00021643,4]
[365600069,1749799843094,-460.0,0.00021643,4]
[365600072,1749799843104,-1146.46,0.00021643,4]
[365600076,1749799843113,-460.0,0.00021643,4]
[365600078,1749799843124,-460.0,0.00021643,4]
[365600080,1749799843134,-460.0,0.00021643,4]
[365600081,1749799843146,-460.0,0.00021643,4]
[365600083,1749799843156,-684.08,0.00021643,4]
[365600085,1749799843166,-620.25,0.00021643,4]
[365600087,1749799843175,-460.0,0.00021643,4]
[365600089,1749799843185,-1198.41,0.00021643,4]
[365600091,1749799843201,-460.0,0.00021643,4]
[365600093,1749799843213,-460.0,0.00021643,4]
[365600094,1749799843223,-700.0,0.00021689,2]
[365600096,1749799843232,-153.057035,0.00021689,2]
[365600098,1749799843242,-151.0,0.00021689,2]
[365600100,1749799843252,-151.0,0.00021689,2]
[365600102,1749799843261,-151.0,0.00021689,2]
[365600104,1749799843271,-602.544467,0.00021689,2]
[365600106,1749799843280,-602.544467,0.00021689,2]
[365600107,1749799843290,-1287.57,0.00021727,4]
[365600109,1749799843299,-2947.09752673,0.00021728,5]
[365600111,1749799843309,-3563.5,0.00021729,2]
[365600113,1749799843318,-151.0,0.0002175,2]
[365600115,1749799843328,-151.0,0.00021763,2]
[365600117,1749799843337,-2497.937806,0.00021763,2]
[365600119,1749799843346,-2497.937806,0.00021763,2]
[365600121,1749799843355,-151.0,0.00021763,2]
[365600122,1749799843365,-542.870431,0.00021824,2]
[365600124,1749799843375,-542.870431,0.00021824,2]
[365600126,1749799843387,-151.0,0.00021865,2]
[365600128,1749799843398,-194.941344,0.00021865,2]
[365600130,1749799843408,-194.941344,0.00021865,2]
[365600132,1749799843417,-2947.09752673,0.00021866,6]
[365600134,1749799843427,-1287.57,0.00021916,4]
[365600135,1749799843436,-224.060465,0.00021917,2]
[365600137,1749799843446,-500.0,0.00021917,2]
[365600139,1749799843456,-151.0,0.00021917,2]
[365600140,1749799843467,-505.4,0.00021917,4]
[365600141,1749799843476,-460.0,0.00021917,4]
[365600142,1749799843486,-500.0,0.00021917,2]
[365600143,1749799843495,-500.0,0.00021917,2]
[365600144,1749799843504,-502.37999816,0.00021917,2]
[365600145,1749799843514,-343.48446535,0.00021917,4]
[365600146,1749799843523,-732.5,0.00021917,2]
[365600147,1749799843532,-151.0,0.00021917,2]
[365600148,1749799843542,-151.0,0.00021917,2]
[365600149,1749799843555,-1763.300814,0.00021917,2]
[365600150,1749799843570,-1763.300814,0.00021917,2]
[365600151,1749799843580,-151.0,0.00021917,2]
[365600152,1749799843590,-1173.81,0.00021917,4]
[365600153,1749799843600,-571.07,0.00021917,4]
[365600154,1749799843609,-460.0,0.00021917,4]
[365600155,1749799843618,-460.0,0.00021917,4]
[365600156,1749799843628,-613.79,0.00021917,4]
[365600157,1749799843638,-460.0,0.00021917,4]
[365600158,1749799843647,-1089.66,0.00021917,4]
[365600159,1749799843656,-674.41,0.00021917,4]
[365600160,1749799843665,-460.0,0.00021917,4]
[365600161,1749799843674,-460.0,0.00021917,4]
[365600162,1749799843684,-460.0,0.00021917,4]
[365600163,1749799843693,-460.0,0.00021917,4]
[365600164,1749799843703,-480.27,0.00021917,4]
[365600165,1749799843712,-460.0,0.00021917,4]
[365600166,1749799843722,-1146.46,0.00021917,4]
[365600167,1749799843731,-214.768915,0.00021917,2]
[365600168,1749799843741,-214.768915,0.00021917,2]
[365600169,1749799843751,-460.0,0.00021917,4]
[365600170,1749799843760,-460.0,0.00021917,4]
[365600171,1749799843769,-460.0,0.00021917,4]
[365600172,1749799843778,-460.0,0.00021917,4]
[365600173,1749799843787,-684.08,0.00021917,4]
[365600174,1749799843797,-620.25,0.00021917,4]
[365600175,1749799843807,-460.0,0.00021917,4]
[365600176,1749799843816,-1198.41,0.00021917,4]
[365600177,1749799843826,-460.0,0.00021917,4]
[365600178,1749799843835,-380.0,0.00021917,4]
[365600179,1749799843844,-151.0,0.00021918,2]
[365600180,1749799843854,-151.0,0.00021918,2]
[365600181,1749799843863,-151.0,0.00021918,2]
[365600182,1749799843872,-151.0,0.00021918,2]
[365600183,1749799843975,-151.0,0.00021918,2]
[365600184,1749799843985,-151.0,0.00021918,2]
[365600185,1749799843995,-151.0,0.00021918,2]
[365600186,1749799844005,-151.0,0.00021918,2]
[365600187,1749799844015,-243.46187697,0.00021918,3]
[365600188,1749799844024,-545.23648232,0.00021929,2]
[365600189,1749799844034,-5000.0,0.00021949,2]
[365600190,1749799844043,-462.021599,0.00021968,2]
[365600191,1749799844052,-1500.0,0.00021968,2]
[365600192,1749799844062,-1350.91645216,0.00021968,2]
[365600193,1749799844071,-1500.0,0.00021968,2]
[365600194,1749799844081,-1091.13064714,0.00021968,2]
[365600195,1749799844090,-151.0,0.00021977,7]
[365600196,1749799844099,-151.0,0.00021977,7]
[365600197,1749799844108,-467.51339151,0.0002199,4]
[365600198,1749799844118,-1000.0,0.00022,22]
[365600199,1749799844127,-157.0,0.00022,3]
[365600200,1749799844137,-157.0,0.00022,3]
[365600201,1749799844146,-1215.672366,0.00022,7]
[365600202,1749799844155,-1215.672366,0.00022,7]
[365600203,1749799844165,-5155.45732688,0.00022,2]
[365600204,1749799844174,-198.0,0.00022,2]
[365600206,1749799844185,-1287.57,0.00022003,4]
[365600207,1749799844195,-1287.57,0.00022003,4]
[365600208,1749799844204,-1287.57,0.00022003,4]
[365600210,1749799844213,-1287.57,0.00022003,4]
[365600211,1749799844223,-1287.62368867,0.00022003,4]
[365600212,1749799844232,-2947.09752673,0.00022003,6]
[365600214,1749799844241,-151.610522,0.00022004,7]
[365600216,1749799844251,-151.0,0.00022004,7]
[365600218,1749799844260,-151.0,0.00022004,7]
[365600220,1749799844269,-151.0,0.0002208,7]
[365600222,1749799844278,-151.0,0.0002208,7]
[365600224,1749799844287,-153.476377,0.0002208,7]
[365600226,1749799844296,-151.0,0.0002208,7]
[365600228,1749799844306,-153.476377,0.0002208,7]
[365600230,1749799844315,-151.0,0.0002208,7]
[365600232,1749799844324,-501.0376075,0.00022133,2]
[365600234,1749799844335,-500.0,0.00022133,2]
[365600236,1749799844344,-500.0,0.00022133,2]
[365600238,1749799844354,-500.0,0.00022133,2]
[365600240,1749799844363,-500.0,0.00022133,2]
[365600242,1749799844373,-2947.09752673,0.00022141,6]
[365600244,1749799844382,-151.0,0.00022172,7]
[365600246,1749799844397,-219.38,0.00022187,7]
[365600248,1749799844406,-201.092802,0.00022187,7]
[365600250,1749799844415,-151.0,0.00022187,7]
[365600252,1749799844425,-201.092802,0.00022187,7]
[365600254,1749799844435,-151.0,0.00022187,7]
[365600256,1749799844445,-175.021273,0.00022187,7]
[365600258,1749799844454,-246.658401,0.00022187,7]
[365600260,1749799844465,-175.021273,0.00022187,7]
[365600262,1749799844474,-151.0,0.00022187,7]
[365600264,1749799844484,-2497.937806,0.00022187,2]
[365600266,1749799844493,-151.0,0.00022187,7]
[365600268,1749799844503,-2497.937806,0.00022187,2]
[365600270,1749799844512,-151.0,0.00022187,7]
[365600272,1749799844522,-151.0,0.00022187,7]
[365600274,1749799844531,-151.0,0.00022187,7]
[365600276,1749799844540,-602.544467,0.00022187,7]
[365600278,1749799844549,-602.544467,0.00022187,7]
[365600280,1749799844558,-542.870431,0.00022187,7]
[365600282,1749799844568,-542.870431,0.00022187,7]
[365600284,1749799844577,-151.0,0.00022187,7]
[365600286,1749799844590,-12531.02669373,0.00022187,7]
[365600288,1749799844601,-194.941344,0.00022187,7]
[365600290,1749799844610,-194.941344,0.00022187,7]
[365600292,1749799844619,-214.768915,0.00022187,7]
[365600294,1749799844628,-214.768915,0.00022187,7]
[365600296,1749799844638,-172.750604,0.00022187,7]
[365600298,1749799844648,-151.0,0.00022189,7]
[365600300,1749799844658,-151.0,0.00022189,7]
[365600302,1749799844668,-223.571744,0.00022189,7]
[365600304,1749799844677,-1763.300814,0.00022189,7]
[365600306,1749799844687,-1763.300814,0.00022189,7]
[365600308,1749799844697,-154.827287,0.00022191,7]
[365600310,1749799844706,-151.0,0.00022191,7]
[365600312,1749799844716,-231.658662,0.00022191,7]
[365600314,1749799844725,-523.33,0.00022191,4]
[365600316,1749799844735,-732.5,0.00022191,2]
[365600318,1749799844744,-151.0,0.00022191,7]
[365600320,1749799844754,-1173.81,0.00022191,4]
[365600322,1749799844767,-571.07,0.00022191,4]
[365600324,1749799844776,-460.0,0.00022191,4]
[365600326,1749799844785,-460.0,0.00022191,4]
[365600328,1749799844794,-613.79,0.00022191,4]
[365600330,1749799844804,-460.0,0.00022191,4]
[365600332,1749799844813,-1089.66,0.00022191,4]
[365600334,1749799844823,-674.41,0.00022191,4]
[365600336,1749799844832,-460.0,0.00022191,4]
[365600338,1749799844842,-460.0,0.00022191,4]
[365600340,1749799844851,-460.0,0.00022191,4]
[365600342,1749799844861,-394.31300385,0.00022191,4]
[365600344,1749799844870,-480.27,0.00022191,4]
[365600346,1749799844880,-521.58,0.00022191,4]
[365600348,1749799844890,-1146.46,0.00022191,4]
[365600350,1749799844899,-460.0,0.00022191,4]
[365600352,1749799844909,-460.0,0.00022191,4]
[365600354,1749799844919,-460.0,0.00022191,4]
[365600356,1749799844928,-460.0,0.00022191,4]
[365600358,1749799844937,-684.08,0.00022191,4]
[365600359,1749799844947,-620.25,0.00022191,4]
[365600362,1749799844957,-460.0,0.00022191,4]
[365600363,1749799844967,-1198.41,0.00022191,4]
[365600366,1749799844977,-460.0,0.00022191,4]
[365600367,1749799844987,-151.0,0.00022227,7]
[365600369,1749799844996,-151.0,0.00022227,7]
[365600371,1749799845006,-2090.58,0.00022228,3]
[365600373,1749799845015,-1045.28,0.00022228,3]
[365600375,1749799845025,-522.64,0.00022228,3]
[365600377,1749799845034,-4181.14,0.00022229,3]
[365600379,1749799845043,-8362.3,0.00022245,3]
[365600382,1749799845054,-151.0,0.00022255,7]
[365600383,1749799845066,-1215.672366,0.00022255,7]
[365600386,1749799845076,-1215.672366,0.00022255,7]
[365600387,1749799845085,-238.52,0.00022264,2]
[365600389,1749799845095,-2947.09752673,0.00022279,6]
[365600391,1749799845104,-500.0,0.0002236,2]
[365600393,1749799845114,-500.0,0.00022371,2]
[365600395,1749799845123,-500.0,0.00022371,2]
[365600398,1749799845133,-223.08,0.0002238,2]
[365600400,1749799845145,-500.0,0.00022415,2]
[365600401,1749799845155,-500.0,0.00022416,2]
[365600404,1749799845164,-500.0,0.00022416,2]
[365600406,1749799845174,-2947.09752673,0.00022417,7]
[365600408,1749799845183,-500.0,0.00022423,2]
[365600410,1749799845193,-347.90623513,0.00022423,2]
[365600411,1749799845204,-600.0,0.00022423,2]
[365600413,1749799845215,-500.0,0.00022423,2]
[365600415,1749799845225,-500.0,0.00022423,2]
[365600417,1749799845235,-500.0,0.00022423,2]
[365600419,1749799845244,-165.59022411,0.00022423,2]
[365600421,1749799845255,-500.0,0.00022423,2]
[365600423,1749799845264,-500.0,0.00022423,2]
[365600425,1749799845273,-500.0,0.00022423,2]
[365600427,1749799845283,-500.0,0.00022423,2]
[365600429,1749799845292,-500.0,0.00022423,2]
[365600431,1749799845302,-500.0,0.00022423,2]
[365600433,1749799845312,-500.0,0.00022423,2]
[365600436,1749799845322,-500.0,0.00022423,2]
[365600438,1749799845332,-500.0,0.00022423,2]
[365600440,1749799845341,-160.0,0.00022446,2]
[365600442,1749799845351,-160.0,0.00022446,2]
[365600444,1749799845361,-844.94977992,0.00022446,2]
[365600446,1749799845371,-160.0,0.00022449,2]
[365600448,1749799845380,-160.0,0.00022449,2]
[365600450,1749799845397,-424.32678023,0.00022449,2]
[365600452,1749799845406,-160.0,0.00022449,2]
[365600454,1749799845416,-213.24139183,0.00022449,2]
[365600456,1749799845425,-12531.02669373,0.00022449,2]
[365600458,1749799845436,-160.0,0.00022449,2]
[365600461,1749799845445,-835.28007164,0.00022449,2]
[365600464,1749799845455,-160.0,0.00022449,2]
[365600466,1749799845466,-151.0,0.00022452,7]
[365600468,1749799845476,-151.0,0.00022452,7]
[365600471,1749799845485,-151.0,0.00022452,7]
[365600473,1749799845495,-153.476377,0.00022452,7]
[365600475,1749799845504,-151.0,0.00022452,7]
[365600476,1749799845514,-153.476377,0.00022452,7]
[365600479,1749799845525,-151.0,0.00022452,7]
[365600481,1749799845535,-151.0,0.00022452,7]
[365600483,1749799845545,-2497.937806,0.00022452,2]
[365600485,1749799845555,-151.0,0.00022452,7]
[365600487,1749799845564,-2497.937806,0.00022452,2]
[365600489,1749799845574,-151.0,0.00022452,7]
[365600491,1749799845584,-151.0,0.00022452,7]
[365600493,1749799845593,-151.0,0.00022452,7]
[365600495,1749799845603,-602.544467,0.00022452,7]
[365600496,1749799845613,-602.544467,0.00022452,7]
[365600499,1749799845623,-542.870431,0.00022452,7]
[365600500,1749799845633,-542.870431,0.00022452,7]
[365600503,1749799845645,-164.762775,0.00022452,7]
[365600504,1749799845656,-194.941344,0.00022452,7]
[365600506,1749799845666,-194.941344,0.00022452,7]
[365600509,1749799845676,-151.0,0.0002246,7]
[365600511,1749799845686,-151.0,0.00022465,7]
[365600512,1749799845696,-732.5,0.00022465,2]
[365600514,1749799845706,-151.0,0.00022465,7]
[365600517,1749799845716,-1763.300814,0.00022465,7]
[365600519,1749799845726,-1763.300814,0.00022465,7]
[365600521,1749799845737,-151.0,0.00022465,7]
[365600523,1749799845753,-1173.81,0.00022465,4]
[365600525,1749799845773,-571.07,0.00022465,4]
[365600527,1749799845786,-460.0,0.00022465,4]
[365600529,1749799845796,-460.0,0.00022465,4]
[365600531,1749799845805,-613.79,0.00022465,4]
[365600533,1749799845815,-460.0,0.00022465,4]
[365600535,1749799845825,-1089.66,0.00022465,4]
[365600537,1749799845834,-674.41,0.00022465,4]
[365600538,1749799845844,-460.0,0.00022465,4]
[365600539,1749799845853,-460.0,0.00022465,4]
[365600540,1749799845863,-460.0,0.00022465,4]
[365600541,1749799845873,-480.27,0.00022465,4]
[365600542,1749799845882,-1146.46,0.00022465,4]
[365600543,1749799845894,-214.768915,0.00022465,7]
[365600544,1749799845903,-460.0,0.00022465,4]
[365600546,1749799845914,-214.768915,0.00022465,7]
[365600548,1749799845926,-460.0,0.00022465,4]
[365600550,1749799845939,-460.0,0.00022465,4]
[365600552,1749799845949,-460.0,0.00022465,4]
[365600554,1749799845958,-684.08,0.00022465,4]
[365600556,1749799845968,-620.25,0.00022465,4]
[365600558,1749799845977,-460.0,0.00022465,4]
[365600560,1749799845987,-1198.41,0.00022465,4]
[365600562,1749799845996,-460.0,0.00022465,4]
[365600564,1749799846006,-151.0,0.00022466,7]
[365600566,1749799846015,-165.420941,0.00022466,7]
[365600568,1749799846025,-151.0,0.00022466,7]
[365600570,1749799846035,-201.092802,0.00022466,7]
[365600572,1749799846044,-151.0,0.00022466,7]
[365600574,1749799846054,-201.092802,0.00022466,7]
[365600576,1749799846064,-151.0,0.00022466,7]
[365600578,1749799846073,-151.0,0.00022466,7]
[365600580,1749799846083,-175.021273,0.00022466,7]
[365600582,1749799846092,-175.021273,0.00022466,7]
[365600584,1749799846101,-151.0,0.00022466,7]
[365600586,1749799846110,-1215.672366,0.00022466,7]
[365600588,1749799846120,-1215.672365,0.00022466,7]
[365600589,1749799846129,-500.0,0.00022466,2]
[365600591,1749799846139,-500.0,0.00022466,2]
[365600593,1749799846148,-500.0,0.00022466,2]
[365600595,1749799846158,-500.0,0.00022466,2]
[365600597,1749799846167,-500.0,0.00022466,2]
[365600599,1749799846177,-500.0,0.00022466,2]
[365600601,1749799846187,-500.0,0.00022466,2]
[365600603,1749799846196,-500.0,0.00022466,2]
[365600606,1749799846206,-500.0,0.00022466,2]
[365600617,1749799846300,-389.84975825,0.00022469,2]
[365600619,1749799846309,-151.0,0.00022482,7]
[365600621,1749799846319,-151.0,0.00022482,7]
[365600623,1749799846328,-209.118853,0.00022482,7]
[365600625,1749799846337,-602.544467,0.00022482,7]
[365600627,1749799846347,-602.544467,0.00022482,7]
[365600628,1749799846356,-542.870431,0.00022482,7]
[365600630,1749799846365,-542.870431,0.00022482,7]
[365600632,1749799846374,-151.0,0.00022482,7]
[365600634,1749799846385,-1763.300814,0.00022482,7]
[365600636,1749799846399,-1763.300814,0.00022482,7]
[365600638,1749799846409,-194.941344,0.00022482,7]
[365600640,1749799846418,-194.941344,0.00022482,7]
[365600642,1749799846427,-151.0,0.00022498,7]
[365600644,1749799846438,-151.0,0.00022498,7]
[365600646,1749799846448,-267.10156,0.000225,7]
[365600648,1749799846458,-2497.937806,0.000225,2]
[365600650,1749799846468,-2497.937806,0.000225,2]